[Event "Late-Titled-Tuesday-Blitz-December-26-2023"]
[Site "Chess.com"]
[Date "2023.12.26"]
[Round "1"]
[White "vugarrasulov"]
[Black "Romadk"]
[Result "1-0"]
[WhiteElo "2919"]
[BlackElo "2492"]
[TimeControl "180+1"]
[EndTime "14:05:55 PST"]
[Termination "vugarrasulov won by checkmate"]

1. e4 {[%clk 0:03:00.9]} 1... Nf6 {[%clk 0:02:59.6]} 2. e5 {[%clk 0:03:00.2]}
2... Nd5 {[%clk 0:02:59.3]} 3. d4 {[%clk 0:03:00.7]} 3... d6 {[%clk 0:02:59.7]}
4. Nf3 {[%clk 0:03:00.9]} 4... g6 {[%clk 0:03:00.1]} 5. Bc4 {[%clk 0:02:58.2]}
5... Nb6 {[%clk 0:03:00.3]} 6. Bb3 {[%clk 0:02:56.5]} 6... Bg7 {[%clk
0:03:01.2]} 7. Ng5 {[%clk 0:02:49.8]} 7... e6 {[%clk 0:03:01.5]} 8. exd6 {[%clk
0:02:43.8]} 8... Qxd6 {[%clk 0:02:51.5]} 9. c3 {[%clk 0:02:42.4]} 9... O-O
{[%clk 0:02:50.2]} 10. O-O {[%clk 0:02:41.3]} 10... Nc6 {[%clk 0:02:41.7]} 11.
Nd2 {[%clk 0:02:39.8]} 11... Na5 {[%clk 0:02:40.8]} 12. Bc2 {[%clk 0:02:36.7]}
12... Nac4 {[%clk 0:02:38.2]} 13. Nde4 {[%clk 0:02:30.6]} 13... Qe7 {[%clk
0:02:37]} 14. b3 {[%clk 0:02:22.6]} 14... Nd6 {[%clk 0:02:33]} 15. Ba3 {[%clk
0:02:22.7]} 15... h6 {[%clk 0:02:25.6]} 16. Nxd6 {[%clk 0:02:21.7]} 16... cxd6
{[%clk 0:02:24.8]} 17. Ne4 {[%clk 0:02:22.1]} 17... Rd8 {[%clk 0:02:13.1]} 18.
c4 {[%clk 0:02:21.2]} 18... Qc7 {[%clk 0:02:05.5]} 19. Nxd6 {[%clk 0:02:00.2]}
19... Rxd6 {[%clk 0:02:03.6]} 20. Bxd6 {[%clk 0:02:01.1]} 20... Qxd6 {[%clk
0:02:01.5]} 21. c5 {[%clk 0:02:01.7]} 21... Qxd4 {[%clk 0:01:58.1]} 22. cxb6
{[%clk 0:02:02.1]} 22... Qxa1 {[%clk 0:01:53.9]} 23. Qd8+ {[%clk 0:02:01.5]}
23... Kh7 {[%clk 0:01:47]} 24. Rxa1 {[%clk 0:02:02.4]} 24... Bxa1 {[%clk
0:01:46.3]} 25. bxa7 {[%clk 0:02:01.4]} 25... Kg7 {[%clk 0:01:38]} 26. g3 {[%clk
0:01:54]} 26... Bf6 {[%clk 0:01:32.5]} 27. Qe8 {[%clk 0:01:54.6]} 27... b6
{[%clk 0:01:25.7]} 28. Qc6 {[%clk 0:01:50.5]} 28... Rxa7 {[%clk 0:01:22.9]} 29.
Qxc8 {[%clk 0:01:50.7]} 29... Rxa2 {[%clk 0:01:23.8]} 30. Qc4 {[%clk 0:01:44.8]}
30... Ra1+ {[%clk 0:01:19.4]} 31. Kg2 {[%clk 0:01:44.7]} 31... h5 {[%clk
0:01:20.3]} 32. h4 {[%clk 0:01:44.6]} 32... Rc1 {[%clk 0:01:20]} 33. Qe4 {[%clk
0:01:42.8]} 33... Ra1 {[%clk 0:01:16.5]} 34. Bd3 {[%clk 0:01:41.3]} 34... Ra3
{[%clk 0:01:15.5]} 35. Bc4 {[%clk 0:01:40.7]} 35... b5 {[%clk 0:01:14.6]} 36.
Bxe6 {[%clk 0:01:31.9]} 36... fxe6 {[%clk 0:01:14]} 37. Qb7+ {[%clk 0:01:32.5]}
37... Kh6 {[%clk 0:01:13.5]} 38. Qxb5 {[%clk 0:01:33.4]} 38... Ra1 {[%clk
0:01:12]} 39. Qc6 {[%clk 0:01:29.3]} 39... Re1 {[%clk 0:01:09.3]} 40. b4 {[%clk
0:01:29.5]} 40... Re2 {[%clk 0:01:08.9]} 41. Kf1 {[%clk 0:01:23.8]} 41... Rb2
{[%clk 0:01:08.4]} 42. Qxe6 {[%clk 0:01:13.7]} 42... Bd4 {[%clk 0:01:06.3]} 43.
Qd6 {[%clk 0:01:14.2]} 43... Rxf2+ {[%clk 0:00:55.4]} 44. Ke1 {[%clk 0:01:13.8]}
44... Be3 {[%clk 0:00:49.8]} 45. Qe5 {[%clk 0:01:13.5]} 45... Bb6 {[%clk
0:00:46.5]} 46. Qh8# {[%clk 0:01:13.3]} 1-0

[Event "Late-Titled-Tuesday-Blitz-December-26-2023"]
[Site "Chess.com"]
[Date "2023.12.26"]
[Round "1"]
[White "anasta10"]
[Black "ilya2700"]
[Result "1-0"]
[WhiteElo "2627"]
[BlackElo "2332"]
[TimeControl "180+1"]
[EndTime "14:06:04 PST"]
[Termination "anasta10 won by resignation"]

1. Nf3 {[%clk 0:03:00.9]} 1... Nf6 {[%clk 0:02:59.8]} 2. d4 {[%clk 0:02:56]}
2... d5 {[%clk 0:02:59.6]} 3. c4 {[%clk 0:02:56.1]} 3... e6 {[%clk 0:02:59.6]}
4. Nc3 {[%clk 0:02:56.8]} 4... Be7 {[%clk 0:02:59.8]} 5. cxd5 {[%clk 0:02:56.7]}
5... exd5 {[%clk 0:02:59.2]} 6. Bg5 {[%clk 0:02:57.2]} 6... O-O {[%clk 0:02:59]}
7. e3 {[%clk 0:02:57.4]} 7... Nbd7 {[%clk 0:02:59.4]} 8. Qc2 {[%clk 0:02:57.7]}
8... b6 {[%clk 0:02:59.2]} 9. Bd3 {[%clk 0:02:57.9]} 9... Bb7 {[%clk 0:02:59.2]}
10. O-O-O {[%clk 0:02:58.1]} 10... c5 {[%clk 0:02:59.1]} 11. Kb1 {[%clk
0:02:58.7]} 11... Rc8 {[%clk 0:02:59]} 12. h3 {[%clk 0:02:56.9]} 12... cxd4
{[%clk 0:02:57.5]} 13. exd4 {[%clk 0:02:56.3]} 13... Ne4 {[%clk 0:02:57.5]} 14.
Bxe7 {[%clk 0:02:54.7]} 14... Qxe7 {[%clk 0:02:58.4]} 15. Bxe4 {[%clk
0:02:36.1]} 15... dxe4 {[%clk 0:02:57.1]} 16. Nd2 {[%clk 0:02:36.7]} 16... Nf6
{[%clk 0:02:53.4]} 17. Rhe1 {[%clk 0:02:34.2]} 17... Rfe8 {[%clk 0:02:44.5]} 18.
Qb3 {[%clk 0:02:24.6]} 18... Qd7 {[%clk 0:02:12.4]} 19. Nc4 {[%clk 0:02:18.2]}
19... Nd5 {[%clk 0:02:01.3]} 20. Ne3 {[%clk 0:02:07.3]} 20... Nxc3+ {[%clk
0:01:44.8]} 21. bxc3 {[%clk 0:02:08.2]} 21... Rc7 {[%clk 0:01:41.1]} 22. Rc1
{[%clk 0:02:05.1]} 22... Rec8 {[%clk 0:01:35.9]} 23. Red1 {[%clk 0:01:52.9]}
23... Bc6 {[%clk 0:01:35]} 24. Rd2 {[%clk 0:01:46.9]} 24... Ba4 {[%clk
0:01:30.1]} 25. Qb2 {[%clk 0:01:38.3]} 25... b5 {[%clk 0:01:29.1]} 26. Ka1
{[%clk 0:01:20.1]} 26... b4 {[%clk 0:01:27.3]} 27. c4 {[%clk 0:01:03.3]} 27...
a5 {[%clk 0:01:23.3]} 28. c5 {[%clk 0:01:00.6]} 28... Rb8 {[%clk 0:01:18.4]} 29.
d5 {[%clk 0:00:59.1]} 29... Bb5 {[%clk 0:01:08.4]} 30. c6 {[%clk 0:00:56.8]}
30... Qd6 {[%clk 0:01:05.7]} 31. Qxg7+ {[%clk 0:00:53.2]} 31... Kxg7 {[%clk
0:01:02.7]} 32. Nf5+ {[%clk 0:00:54]} 32... Kf6 {[%clk 0:00:59.3]} 33. Nxd6
{[%clk 0:00:54.6]} 33... Ke5 {[%clk 0:00:59.6]} 34. Nxb5 {[%clk 0:00:53.5]}
34... Rxb5 {[%clk 0:01:00.5]} 35. d6 {[%clk 0:00:53]} 35... Rxc6 {[%clk
0:00:45]} 36. Rxc6 {[%clk 0:00:52]} 1-0

[Event "Late-Titled-Tuesday-Blitz-December-26-2023"]
[Site "Chess.com"]
[Date "2023.12.26"]
[Round "1"]
[White "Jospem"]
[Black "SandwichOSaumon"]
[Result "1-0"]
[WhiteElo "3083"]
[BlackElo "2508"]
[TimeControl "180+1"]
[EndTime "14:06:06 PST"]
[Termination "Jospem won by resignation"]

1. e4 {[%clk 0:03:00.9]} 1... c5 {[%clk 0:02:58.3]} 2. Nf3 {[%clk 0:03:01.4]}
2... d6 {[%clk 0:02:58.2]} 3. c3 {[%clk 0:03:01.9]} 3... Nf6 {[%clk 0:02:58]} 4.
h3 {[%clk 0:03:02.1]} 4... Nbd7 {[%clk 0:02:56.8]} 5. Bd3 {[%clk 0:03:02.6]}
5... g6 {[%clk 0:02:56.9]} 6. Bc2 {[%clk 0:03:02.9]} 6... Bg7 {[%clk 0:02:57.5]}
7. d4 {[%clk 0:03:03.6]} 7... e5 {[%clk 0:02:55.9]} 8. dxe5 {[%clk 0:03:00]}
8... dxe5 {[%clk 0:02:55.1]} 9. O-O {[%clk 0:03:00.1]} 9... O-O {[%clk
0:02:55.3]} 10. a4 {[%clk 0:02:57.9]} 10... b6 {[%clk 0:02:54.8]} 11. Na3 {[%clk
0:02:57.5]} 11... Bb7 {[%clk 0:02:54.6]} 12. Qe2 {[%clk 0:02:57.6]} 12... Qe7
{[%clk 0:02:52.9]} 13. Nc4 {[%clk 0:02:52.2]} 13... Rad8 {[%clk 0:02:49.6]} 14.
Re1 {[%clk 0:02:47.7]} 14... Rfe8 {[%clk 0:02:47.9]} 15. Bg5 {[%clk 0:02:45]}
15... h6 {[%clk 0:02:47.7]} 16. Bh4 {[%clk 0:02:45.4]} 16... g5 {[%clk
0:02:45.3]} 17. Bg3 {[%clk 0:02:45.5]} 17... Nh5 {[%clk 0:02:44.7]} 18. Ne3
{[%clk 0:02:40.8]} 18... Nf4 {[%clk 0:02:40.6]} 19. Qc4 {[%clk 0:02:40.9]} 19...
Nb8 {[%clk 0:02:36.2]} 20. a5 {[%clk 0:02:26.5]} 20... Ba6 {[%clk 0:02:33.1]}
21. Qa2 {[%clk 0:02:26.7]} 21... Qe6 {[%clk 0:02:26.4]} 22. axb6 {[%clk
0:02:25.5]} 22... Qxa2 {[%clk 0:02:24.6]} 23. Rxa2 {[%clk 0:02:26.4]} 23... axb6
{[%clk 0:02:24.9]} 24. Bb3 {[%clk 0:02:14.5]} 24... Bd3 {[%clk 0:02:19.7]} 25.
Nf5 {[%clk 0:02:11.4]} 25... Nc6 {[%clk 0:02:13.6]} 26. Re3 {[%clk 0:01:52.9]}
26... Bf8 {[%clk 0:01:55]} 27. Kh2 {[%clk 0:01:50.7]} 27... c4 {[%clk
0:01:51.8]} 28. Ba4 {[%clk 0:01:50.5]} 28... Re6 {[%clk 0:01:52.3]} 29. Bxc6
{[%clk 0:01:49.6]} 29... Rxc6 {[%clk 0:01:53.2]} 30. Nxe5 {[%clk 0:01:49.4]}
30... Re6 {[%clk 0:01:47.7]} 31. Nf3 {[%clk 0:01:31.2]} 31... Rxe4 {[%clk
0:01:43.5]} 32. Ra7 {[%clk 0:01:28]} 32... Rde8 {[%clk 0:01:35.2]} 33. Rb7
{[%clk 0:01:21.2]} 33... Bc5 {[%clk 0:01:27.1]} 34. Nxh6+ {[%clk 0:01:15.8]}
34... Kg7 {[%clk 0:01:13.8]} 35. Nxg5 {[%clk 0:01:03.3]} 35... Bxe3 {[%clk
0:01:00.4]} 36. fxe3 {[%clk 0:01:00.8]} 36... Kxh6 {[%clk 0:01:00.2]} 37. Nxe4
{[%clk 0:00:56.5]} 37... Nxg2 {[%clk 0:00:56.5]} 38. Nd6 {[%clk 0:00:48.9]}
38... Re6 {[%clk 0:00:53]} 39. Rxb6 {[%clk 0:00:41.9]} 39... Nxe3 {[%clk
0:00:49.2]} 40. Nxf7+ {[%clk 0:00:41.8]} 1-0

[Event "Late-Titled-Tuesday-Blitz-December-26-2023"]
[Site "Chess.com"]
[Date "2023.12.26"]
[Round "1"]
[White "Hrant_ChessMood"]
[Black "sakkikuska"]
[Result "1-0"]
[WhiteElo "2879"]
[BlackElo "2470"]
[TimeControl "180+1"]
[EndTime "14:06:07 PST"]
[Termination "Hrant_ChessMood won by resignation"]

1. Nf3 {[%clk 0:02:59.5]} 1... Nf6 {[%clk 0:02:59.8]} 2. c4 {[%clk 0:02:58]}
2... g6 {[%clk 0:02:59.2]} 3. Nc3 {[%clk 0:02:57.8]} 3... d5 {[%clk 0:02:59.7]}
4. cxd5 {[%clk 0:02:57]} 4... Nxd5 {[%clk 0:03:00.6]} 5. h4 {[%clk 0:02:57]}
5... Bg7 {[%clk 0:02:55.1]} 6. e4 {[%clk 0:02:52.6]} 6... Nxc3 {[%clk
0:02:51.5]} 7. dxc3 {[%clk 0:02:53.5]} 7... Qxd1+ {[%clk 0:02:47.9]} 8. Kxd1
{[%clk 0:02:54.4]} 8... Bg4 {[%clk 0:02:40.5]} 9. Kc2 {[%clk 0:02:49.4]} 9...
Nd7 {[%clk 0:02:18.8]} 10. Nd4 {[%clk 0:02:45.3]} 10... Nc5 {[%clk 0:01:40.1]}
11. f3 {[%clk 0:02:44.3]} 11... Bd7 {[%clk 0:01:39.2]} 12. h5 {[%clk 0:02:42.7]}
12... O-O-O {[%clk 0:01:35.9]} 13. Be3 {[%clk 0:02:41.3]} 13... a6 {[%clk
0:01:29.4]} 14. Bc4 {[%clk 0:02:38.9]} 14... Ne6 {[%clk 0:01:06.5]} 15. Nxe6
{[%clk 0:02:34.6]} 15... Bxe6 {[%clk 0:01:07]} 16. Bxe6+ {[%clk 0:02:34.6]}
16... fxe6 {[%clk 0:01:07.9]} 17. Rh3 {[%clk 0:02:31.5]} 17... Bf6 {[%clk
0:00:51.1]} 18. Rah1 {[%clk 0:02:21.5]} 18... g5 {[%clk 0:00:51.1]} 19. h6
{[%clk 0:02:18.8]} 19... Rhg8 {[%clk 0:00:49.3]} 20. Rg3 {[%clk 0:02:18.3]}
20... Rg6 {[%clk 0:00:47.8]} 21. Rg4 {[%clk 0:02:18.1]} 21... Rdg8 {[%clk
0:00:44.1]} 22. Rh5 {[%clk 0:02:17.1]} 22... e5 {[%clk 0:00:43.2]} 23. a4 {[%clk
0:02:11.8]} 23... b5 {[%clk 0:00:42.2]} 24. axb5 {[%clk 0:01:50.1]} 24... axb5
{[%clk 0:00:43.1]} 25. Bc5 {[%clk 0:01:50.3]} 25... Kd7 {[%clk 0:00:41.1]} 26.
b4 {[%clk 0:01:46.3]} 26... c6 {[%clk 0:00:41.1]} 27. Kb3 {[%clk 0:01:46.5]}
27... e6 {[%clk 0:00:40.7]} 28. Rh1 {[%clk 0:01:45.9]} 28... Ra8 {[%clk
0:00:37.2]} 29. Rd1+ {[%clk 0:01:44.7]} 29... Kc7 {[%clk 0:00:37.3]} 30. Rh1
{[%clk 0:01:22.6]} 30... Kd7 {[%clk 0:00:33.9]} 31. Rg3 {[%clk 0:01:20]} 31...
Kc7 {[%clk 0:00:32.9]} 32. Rgh3 {[%clk 0:01:14.8]} 32... g4 {[%clk 0:00:31.6]}
33. Rg3 {[%clk 0:01:15.1]} 33... gxf3 {[%clk 0:00:31.7]} 34. Rxg6 {[%clk
0:01:14.6]} 34... hxg6 {[%clk 0:00:32.2]} 35. gxf3 {[%clk 0:01:14.4]} 35... Rh8
{[%clk 0:00:31.5]} 36. h7 {[%clk 0:01:14.8]} 36... g5 {[%clk 0:00:31.8]} 37. Rh6
{[%clk 0:01:13.4]} 37... Bd8 {[%clk 0:00:32.1]} 38. Bf8 {[%clk 0:01:07.3]} 38...
Rxf8 {[%clk 0:00:29.6]} 39. h8=Q {[%clk 0:01:07.3]} 1-0

[Event "Late-Titled-Tuesday-Blitz-December-26-2023"]
[Site "Chess.com"]
[Date "2023.12.26"]
[Round "1"]
[White "ccccvhhhj"]
[Black "AlexanderL"]
[Result "0-1"]
[WhiteElo "2479"]
[BlackElo "2901"]
[TimeControl "180+1"]
[EndTime "14:06:09 PST"]
[Termination "AlexanderL won by resignation"]

1. e4 {[%clk 0:03:00.9]} 1... e6 {[%clk 0:02:59.8]} 2. Nf3 {[%clk 0:03:01.1]}
2... d5 {[%clk 0:02:59.6]} 3. e5 {[%clk 0:03:01.7]} 3... c5 {[%clk 0:02:59.1]}
4. b4 {[%clk 0:03:02.2]} 4... cxb4 {[%clk 0:02:54]} 5. a3 {[%clk 0:03:02.8]}
5... bxa3 {[%clk 0:02:49.9]} 6. Nxa3 {[%clk 0:03:03.7]} 6... Bd7 {[%clk
0:02:47.4]} 7. c3 {[%clk 0:03:03.8]} 7... Nc6 {[%clk 0:02:42.9]} 8. d4 {[%clk
0:03:04.4]} 8... a6 {[%clk 0:02:38.9]} 9. Bd3 {[%clk 0:03:04.1]} 9... Rc8 {[%clk
0:02:39]} 10. O-O {[%clk 0:03:04.5]} 10... Na5 {[%clk 0:02:39]} 11. Bd2 {[%clk
0:03:00.4]} 11... Ne7 {[%clk 0:02:35.8]} 12. Ne1 {[%clk 0:02:41.6]} 12... h5
{[%clk 0:02:32.8]} 13. f4 {[%clk 0:02:40.6]} 13... Nf5 {[%clk 0:02:31.4]} 14.
Nf3 {[%clk 0:02:06.7]} 14... Be7 {[%clk 0:02:29.5]} 15. Re1 {[%clk 0:01:42.5]}
15... g6 {[%clk 0:02:27.6]} 16. Bf1 {[%clk 0:01:15.9]} 16... Bc6 {[%clk
0:02:22.9]} 17. Ra2 {[%clk 0:01:12.6]} 17... Nc4 {[%clk 0:02:19.1]} 18. Nxc4
{[%clk 0:01:06.2]} 18... dxc4 {[%clk 0:02:20]} 19. Bc1 {[%clk 0:00:53.3]} 19...
Bd5 {[%clk 0:02:09.6]} 20. Ba3 {[%clk 0:00:52.8]} 20... Bxa3 {[%clk 0:02:07.7]}
21. Rxa3 {[%clk 0:00:53.7]} 21... Qe7 {[%clk 0:02:07.6]} 22. Ra2 {[%clk
0:00:49.6]} 22... Kf8 {[%clk 0:02:05.7]} 23. Ng5 {[%clk 0:00:43]} 23... Kg7
{[%clk 0:02:05.9]} 24. Be2 {[%clk 0:00:32.4]} 24... Bxg2 {[%clk 0:02:01.1]} 25.
Bf3 {[%clk 0:00:28.1]} 25... Bxf3 {[%clk 0:02:00.9]} 26. Qxf3 {[%clk 0:00:29]}
26... Rcd8 {[%clk 0:01:57.3]} 27. Ne4 {[%clk 0:00:29.2]} 27... Rd5 {[%clk
0:01:53.7]} 28. Nf6 {[%clk 0:00:29.1]} 28... Rb5 {[%clk 0:01:53.8]} 29. d5
{[%clk 0:00:19.5]} 29... exd5 {[%clk 0:01:53.4]} 30. Nxd5 {[%clk 0:00:20.4]}
30... Qc5+ {[%clk 0:01:52.2]} 31. Ne3 {[%clk 0:00:19.7]} 31... Rd8 {[%clk
0:01:42.7]} 32. Kh1 {[%clk 0:00:19.1]} 32... Nxe3 {[%clk 0:01:43]} 33. Rxe3
{[%clk 0:00:19.5]} 33... Qd5 {[%clk 0:01:43.5]} 34. Qxd5 {[%clk 0:00:14]} 34...
Rdxd5 {[%clk 0:01:43]} 35. Kg2 {[%clk 0:00:14.9]} 35... Rd3 {[%clk 0:01:41.1]}
36. Kf3 {[%clk 0:00:15.5]} 36... Rbd5 {[%clk 0:01:38.4]} 37. Rb2 {[%clk
0:00:12.2]} 37... b5 {[%clk 0:01:38.5]} 38. Ra2 {[%clk 0:00:12.3]} 38... Rxe3+
{[%clk 0:01:38.8]} 39. Kxe3 {[%clk 0:00:13.2]} 39... Rd3+ {[%clk 0:01:39.2]} 40.
Ke4 {[%clk 0:00:13.9]} 40... Rxc3 {[%clk 0:01:39.8]} 41. Rxa6 {[%clk 0:00:14.4]}
41... Rc1 {[%clk 0:01:36.7]} 42. Ra7 {[%clk 0:00:14.9]} 42... Re1+ {[%clk
0:01:37.3]} 43. Kd5 {[%clk 0:00:14.9]} 43... c3 {[%clk 0:01:37.4]} 44. Rc7
{[%clk 0:00:14.2]} 44... b4 {[%clk 0:01:37.8]} 45. Rc6 {[%clk 0:00:11.7]} 45...
b3 {[%clk 0:01:36.7]} 46. Rc7 {[%clk 0:00:08.2]} 46... b2 {[%clk 0:01:37.6]} 47.
Rxc3 {[%clk 0:00:06.7]} 47... b1=Q {[%clk 0:01:37.8]} 48. Rc6 {[%clk 0:00:07.6]}
48... Qe4+ {[%clk 0:01:37.8]} 0-1

[Event "Late-Titled-Tuesday-Blitz-December-26-2023"]
[Site "Chess.com"]
[Date "2023.12.26"]
[Round "1"]
[White "greekplayer1"]
[Black "DinaBelenkaya"]
[Result "1-0"]
[WhiteElo "2714"]
[BlackElo "2404"]
[TimeControl "180+1"]
[EndTime "14:06:27 PST"]
[Termination "greekplayer1 won by resignation"]

1. e4 {[%clk 0:02:56.6]} 1... c6 {[%clk 0:02:53.4]} 2. d4 {[%clk 0:02:48.1]}
2... d5 {[%clk 0:02:52.2]} 3. exd5 {[%clk 0:02:27.7]} 3... cxd5 {[%clk 0:02:52]}
4. Bd3 {[%clk 0:02:28]} 4... Nc6 {[%clk 0:02:51.6]} 5. c3 {[%clk 0:02:26.6]}
5... Nf6 {[%clk 0:02:50.7]} 6. h3 {[%clk 0:02:26.3]} 6... Qc7 {[%clk 0:02:49.7]}
7. Nf3 {[%clk 0:02:18]} 7... g6 {[%clk 0:02:38.9]} 8. O-O {[%clk 0:02:17]} 8...
Bf5 {[%clk 0:02:38.6]} 9. Na3 {[%clk 0:02:16.3]} 9... a6 {[%clk 0:02:37.9]} 10.
Nc2 {[%clk 0:02:13.6]} 10... Bxd3 {[%clk 0:01:56]} 11. Qxd3 {[%clk 0:02:12.4]}
11... Bg7 {[%clk 0:01:56.6]} 12. Bg5 {[%clk 0:02:11.2]} 12... O-O {[%clk
0:01:56.8]} 13. Ne3 {[%clk 0:02:10.8]} 13... Rad8 {[%clk 0:01:54.7]} 14. Bxf6
{[%clk 0:02:10]} 14... exf6 {[%clk 0:01:52]} 15. Rfe1 {[%clk 0:02:08.4]} 15...
f5 {[%clk 0:01:52.4]} 16. Re2 {[%clk 0:01:56.2]} 16... h5 {[%clk 0:01:46.8]} 17.
Rae1 {[%clk 0:01:55.1]} 17... Na5 {[%clk 0:01:40]} 18. Nxf5 {[%clk 0:01:47]}
18... gxf5 {[%clk 0:01:38.1]} 19. Qxf5 {[%clk 0:01:47.9]} 19... Qd6 {[%clk
0:01:13.5]} 20. Qxh5 {[%clk 0:01:44.4]} 20... Qg6 {[%clk 0:01:11.1]} 21. Qh4
{[%clk 0:01:44.5]} 21... Nc6 {[%clk 0:01:06.2]} 22. Re3 {[%clk 0:01:40.8]} 22...
Rd6 {[%clk 0:00:57.7]} 23. Ng5 {[%clk 0:01:32.5]} 23... Qh6 {[%clk 0:00:56.6]}
24. Qg4 {[%clk 0:01:23.1]} 24... Rg6 {[%clk 0:00:56.3]} 25. Rg3 {[%clk
0:01:23.2]} 25... Nd8 {[%clk 0:00:40]} 26. Qf5 {[%clk 0:01:18.1]} 26... Qh5
{[%clk 0:00:34.1]} 27. Qxd5 {[%clk 0:00:59.5]} 27... Ne6 {[%clk 0:00:34.2]} 28.
h4 {[%clk 0:00:57.7]} 28... Nxg5 {[%clk 0:00:29.3]} 29. hxg5 {[%clk 0:00:53.5]}
29... b5 {[%clk 0:00:29]} 30. f4 {[%clk 0:00:51.3]} 30... Qh4 {[%clk 0:00:29]}
31. Qf3 {[%clk 0:00:49.9]} 31... Re6 {[%clk 0:00:22.4]} 32. Rf1 {[%clk
0:00:42.6]} 32... Qh7 {[%clk 0:00:19.1]} 33. f5 {[%clk 0:00:43]} 33... Ree8
{[%clk 0:00:16.8]} 34. Rh3 {[%clk 0:00:42.3]} 1-0

[Event "Late-Titled-Tuesday-Blitz-December-26-2023"]
[Site "Chess.com"]
[Date "2023.12.26"]
[Round "1"]
[White "IgorBjelobrk"]
[Black "vladoboch"]
[Result "0-1"]
[WhiteElo "2670"]
[BlackElo "2400"]
[TimeControl "180+1"]
[EndTime "14:06:31 PST"]
[Termination "vladoboch won by checkmate"]

1. d4 {[%clk 0:02:59.6]} 1... Nf6 {[%clk 0:02:58.6]} 2. c4 {[%clk 0:02:59]} 2...
g6 {[%clk 0:02:59]} 3. Nc3 {[%clk 0:02:58.6]} 3... Bg7 {[%clk 0:02:59.4]} 4. e4
{[%clk 0:02:58.7]} 4... d6 {[%clk 0:02:59.9]} 5. h3 {[%clk 0:02:55.4]} 5... O-O
{[%clk 0:02:57.8]} 6. Be3 {[%clk 0:02:55.4]} 6... e5 {[%clk 0:02:57.5]} 7. d5
{[%clk 0:02:54.1]} 7... c6 {[%clk 0:02:41.2]} 8. g4 {[%clk 0:02:41.6]} 8... cxd5
{[%clk 0:02:38.9]} 9. cxd5 {[%clk 0:02:40.9]} 9... a6 {[%clk 0:02:28.3]} 10.
Nge2 {[%clk 0:02:31]} 10... b5 {[%clk 0:02:27.1]} 11. Ng3 {[%clk 0:02:30.6]}
11... Nbd7 {[%clk 0:02:20]} 12. Be2 {[%clk 0:02:22.1]} 12... Nb6 {[%clk
0:02:14.7]} 13. b3 {[%clk 0:02:16.1]} 13... Bd7 {[%clk 0:02:12.9]} 14. Rc1
{[%clk 0:02:15.3]} 14... Rc8 {[%clk 0:02:12.9]} 15. Qd2 {[%clk 0:02:11.2]} 15...
b4 {[%clk 0:01:24]} 16. Nd1 {[%clk 0:02:10.6]} 16... Rxc1 {[%clk 0:01:22.2]} 17.
Qxc1 {[%clk 0:02:11.5]} 17... Qb8 {[%clk 0:01:18]} 18. O-O {[%clk 0:02:01.2]}
18... Rc8 {[%clk 0:01:14.7]} 19. Qd2 {[%clk 0:02:01.1]} 19... a5 {[%clk
0:01:14.1]} 20. Nb2 {[%clk 0:01:55.7]} 20... h5 {[%clk 0:00:53.8]} 21. gxh5
{[%clk 0:01:53.6]} 21... Bxh3 {[%clk 0:00:52.7]} 22. Rc1 {[%clk 0:01:53.3]}
22... Rxc1+ {[%clk 0:00:48.9]} 23. Qxc1 {[%clk 0:01:54.2]} 23... gxh5 {[%clk
0:00:47.9]} 24. Bxh5 {[%clk 0:01:43.1]} 24... Nxh5 {[%clk 0:00:43.9]} 25. Nxh5
{[%clk 0:01:44]} 25... Qd8 {[%clk 0:00:38.4]} 26. Bxb6 {[%clk 0:01:40.5]} 26...
Qh4 {[%clk 0:00:33.4]} 27. Ng3 {[%clk 0:01:36.5]} 27... Bh6 {[%clk 0:00:32.1]}
28. Qd1 {[%clk 0:01:34.9]} 28... Bf4 {[%clk 0:00:32.8]} 29. Qf3 {[%clk
0:01:12.8]} 29... Bg4 {[%clk 0:00:33]} 30. Qg2 {[%clk 0:01:13.1]} 30... Bh3
{[%clk 0:00:32.2]} 31. Qh2 {[%clk 0:01:05.8]} 31... Qg4 {[%clk 0:00:32.1]} 32.
Bxa5 {[%clk 0:00:51.9]} 32... Bc1 {[%clk 0:00:31.4]} 33. f3 {[%clk 0:00:40.8]}
33... Be3+ {[%clk 0:00:27]} 34. Kh1 {[%clk 0:00:32.6]} 34... Qxf3+ {[%clk
0:00:27.3]} 35. Qg2 {[%clk 0:00:33.1]} 35... Qxg2# {[%clk 0:00:28.2]} 0-1